Cogmind - Beta 17 *** ADVENTURER MODE // 2026.08.08 @ 14:21:29 Player: Gder Result: Destroyed by G-34 Mercenary with Small Laser Performance ------------- Evolutions (1) 500 Regions Visited (3) 600 Robots Destroyed (114) 570 Value Destroyed (2710) 2710 Prototype IDs (5) 100 Alien Tech Used (0) 0 Bonus (8278) 8278 TOTAL SCORE: 12758 Bonus ------- High Alert Combat Kills 364 Follower Combat Kills 264 Prayed to X0-1V1 5000 Major X0-1V1 Interference 2650 Cogmind --------- Core Integrity 0/250 Matter 286/300 Energy 280/280 System Corruption 1% Temperature Cool (6) Movement Rolling (116) Ox2 Location -9/Storage Parts ------- > --- POWER (1) -------- Heavy Ion Engine > --- PROPULSION (3) --- Wheel Wheel Compact Wheel (fused) > --- UTILITY (3) ------ Huge Storage Unit Structural Scanner Medium Armor Plating > --- WEAPON (2) ------- Improved Assault Rifle Gauss Rifle > --- INVENTORY (25) --- Heavy Ion Engine Wheel Wheel Compact Wheel Improved Flight Unit Improved Flight Unit Improved Flight Unit Improved Flight Unit Improved Flight Unit Improved Flight Unit Improved Flight Unit Heat Sink Heat Sink Medium Storage Unit Large Storage Unit Large Matter Pod (150) Tractor Beam Tractor Beam Drone Bay (2/2) Shock Rifle Heavy Assault Rifle Autogun Improved Assault Rifle Mini Grenade Launcher Axe Peak State ------------ > --- POWER ------------ Heavy Ion Engine > --- PROPULSION ------- Wheel Wheel Improved Flight Unit > --- UTILITY ---------- Huge Storage Unit Improved Targeting Computer X0-1V1's Piety Tracker > --- WEAPON ----------- Heavy Assault Rifle Axe > --- INVENTORY -------- Heavy Ion Engine Heavy Ion Engine Improved Flight Unit Improved Flight Unit Improved Flight Unit Improved Flight Unit Improved Flight Unit Improved Flight Unit Heat Sink Heat Sink Medium Storage Unit Large Storage Unit Large Matter Pod Structural Scanner Medium Armor Plating Tractor Beam Tractor Beam Shock Rifle Assault Rifle Assault Rifle Autogun Improved Assault Rifle Gauss Rifle Improved Light Cannon Mini Grenade Launcher [Rating: 34] Favorites ----------- Power Ion Engine Engine Ion Engine Propulsion Wheel Treads Light Treads Leg Aluminum Leg Wheel Wheel Flight Unit Improved Flight Unit Utility Huge Storage Unit Device X0-1V1's Piety Tracker Storage Huge Storage Unit Processor Improved Targeting Computer Protection Medium Armor Plating Weapon Light Cannon Energy Gun Small Laser Ballistic Gun Improved Assault Rifle Ballistic Cannon Light Cannon Special Weapon Mining Laser Slashing Weapon Axe Build | -11 -10 -9 -9 ------- Run | Yrd Mat Mat Sto Slots Evolved 2 | . . 2 . Power . | . . . . Propulsion . | . . . . Utility 2 | . . 2 . Weapon . | . . . . Parts Attached 67 | 8 13 19 27 Power 6 | 1 1 3 1 Engine 6 | 1 1 3 1 Core . | . . . . Reactor . | . . . . Propulsion 22 | 2 3 3 14 Treads 5 | . . . 5 Leg 1 | . . . 1 Wheel 15 | 2 3 3 7 Hover . | . . . . Flight 1 | . . . 1 Utility 17 | 2 4 9 2 Device 7 | 1 2 3 1 Storage 3 | 1 2 . . Processor 2 | . . 2 . Hackware . | . . . . Protection 5 | . . 4 1 Artifact . | . . . . Weapon 22 | 3 5 4 10 Energy Gun 6 | 3 1 . 2 Energy Cannon . | . . . . Ballistic Gun 10 | . 1 2 7 Ballistic Cannon 4 | . 2 2 . Launcher . | . . . . Special Weapon 1 | . 1 . . Impact Weapon . | . . . . Slashing Weapon 1 | . . . 1 Piercing Weapon . | . . . . Special Melee Weapon . | . . . . Unidentified Prototypes 3 | . 1 . 2 Parts Lost 22 | . . 10 12 Power 1 | . . 1 . Propulsion 10 | . . 3 7 Utility 5 | . . 4 1 Weapon 6 | . . 2 4 Highest Loss Streak 4 | . . 4 3 To Critical Strikes . | . . . . Average Backups 17 | 2 12 18 24 Power 1 | . 1 1 2 Propulsion 2 | 1 . 1 6 Utility 7 | . 6 8 8 Weapon 6 | . 4 7 7 Tool/Special . | . . . . Unused Backups 33 | . 2 3 28 Power 5 | . . 1 4 Propulsion 11 | . 2 . 9 Utility 6 | . . . 6 Weapon 11 | . . 2 9 Tool/Special . | . . . . Average Slot Usage (%) 95 | . 99 99 88 Engine 10 | . 14 10 6 Treads 3 | . . . 9 Wheel 22 | . 28 20 17 Device 13 | . 14 10 14 Storage 12 | . 14 10 11 Processor 5 | . . 15 5 Protection 2 | . . 5 2 Ballistic Gun 8 | . 1 6 18 Ballistic Cannon 13 | . 22 17 1 Special Weapon 1 | . 4 1 . Peak Build Rating 34 | 7 21 33 34 Average Rating 19 | 5 8 26 28 On Entrance 14 | . 7 21 31 Avg Prop Armor Cover (%) 12 | . . . 12 Naked Turns . | . . . . Heaviest Build 109 | 14 92 109 103 Greatest Support 60 | 26 32 26 60 Greatest Overweight (x) 10 | . 4 10 9 Average Overweight (x) 2 | . 2 4 4 Largest Inventory Capacity 25 | 8 25 25 25 Average Capacity 21 | 7 17 25 25 Most Carried 25 | 5 17 25 25 Average Carried 17 | 3 12 18 24 Final Capacity 25 | 8 25 25 25 Final Carried 25 | 5 17 25 25 Class Distribution -------------------- 82% | Mutant 7% | Scavenger-Mutant 7% | Gunner Dominant Class ---------------- Mutant | -10/Materials Gunner | -9/Materials Mutant | -9/Storage Resources | -11 -10 -9 -9 ----------- Run | Yrd Mat Mat Sto Matter Collected 3028 | 280 393 1187 1168 Remotely 90 | . . 90 . Salvage Created 3901 | 95 272 1231 2303 Parts 248 | 6 29 72 141 Haulers Intercepted 11 | . 2 3 6 Recyclers Shooed 4 | . 1 . 3 Parts Field Recycled . | . . . . Retrieved Matter . | . . . . Parts Self-Destructed . | . . . . Prevented . | . . . . Parts Restored . | . . . . Kills | -11 -10 -9 -9 ------- Run | Yrd Mat Mat Sto Combat Hostiles Destroyed 72 | . 10 29 33 Guns 27 | . . 1 26 Cannons 45 | . 10 28 7 Classes Destroyed 13 | 2 6 4 1 Worker 7 | . 1 2 4 Builder 8 | . . 3 5 Tunneler 1 | 1 . . . Hauler 11 | . 2 3 6 Recycler 7 | 1 . 2 4 Mechanic 4 | . 1 . 3 Operator 1 | . . . 1 Watcher 3 | . 3 . . Swarmer 13 | . 8 3 2 Grunt 37 | . 2 17 18 Brawler 4 | . . 1 3 Duelist 3 | . . 1 2 Sentry 15 | . . 7 8 Best Kill Streak 7 | 2 3 7 6 Combat Bots Only 5 | . 3 5 4 Max Kills in Single Turn 2 | 1 1 2 2 Gunslinging . | . . . . Exploded . | . . . . Melee . | . . . . Uniques/NPCs Destroyed . | . . . . Combat | -11 -10 -9 -9 -------- Run | Yrd Mat Mat Sto Hostile Shots Fired 348 | . 40 123 185 Missed 84 | . 9 31 44 Hits 264 | . 31 92 141 Melee 14 | . . 1 13 Projectile 250 | . 31 91 128 Critical Strikes 5 | . . 1 4 Damage Taken 2719 | . 267 914 1538 Core 501 | . 25 145 331 Absorbed by Shields . | . . . . Ignored by Resistances 802 | . 83 276 443 Core Remaining (%) 95 | 100 90 . . Volleys Fired 298 | 5 75 83 135 Largest 3 | 1 2 3 2 Hottest 100 | 40 100 89 56 Shots Fired 572 | 5 113 194 260 Gun 295 | 5 2 48 240 Cannon 240 | . 74 146 20 Launcher . | . . . . Special 37 | . 37 . . Kinetic 522 | . 74 194 254 Thermal 50 | 5 39 . 6 Explosive . | . . . . Electromagnetic . | . . . . Robot Hit Streak 36 | 5 8 16 36 Robot Miss Streak 4 | . 4 2 2 Penetration Max 1 | . . . 1 Secondary Targets 4 | . . . 4 Max Gunslinging Chain 1 | . . . 1 Shots Hit Robots 416 | 5 45 145 221 Core Hits 166 | 3 17 55 91 Critical Kills 1 | . . . 1 Critical Parts Destroyed . | . . . . Critical Strikes 5 | . 3 1 1 Destroy 1 | . . . 1 Blast 4 | . 3 1 . Melee Attacks 18 | . . . 18 Impact . | . . . . Slashing 18 | . . . 18 Piercing . | . . . . Sneak Attacks 5 | . . . 5 Combat Hostiles . | . . . . Follow-up Attacks . | . . . . Damage Inflicted 6997 | 55 777 2564 3601 Guns 3313 | 55 12 439 2807 Cannons 3283 | . 765 2125 393 Explosions . | . . . . Melee 379 | . . . 379 Ramming 22 | . . . 22 Kinetic 6472 | . 765 2564 3143 Thermal 124 | 55 12 . 57 Explosive . | . . . . Electromagnetic . | . . . . Impact . | . . . . Slashing 379 | . . . 379 Piercing . | . . . . Highest Corruption 1 | . . . 1 Average Corruption 1 | . . . 1 Corruption Purged . | . . . . Corruption Blocked . | . . . . Effects 6 | . . . 6 Message Errors 2 | . . . 2 Matter Fused 1 | . . . 1 Heat Flow Errors 1 | . . . 1 Energy Discharges 1 | . . . 1 Misfires 1 | . . . 1 Overload Shots . | . . . . Overflow Damage 103 | . 15 6 82 Projectiles 21 | . 15 6 . Explosions . | . . . . Melee 82 | . . . 82 Knockbacks 25 | . 8 17 . Impact . | . . . . Kinetic 24 | . 8 16 . Secondary 1 | . . 1 . Self-Inflicted Damage 3 | . . . 3 Shots . | . . . . Rammed 2 | . . . 2 Targets Rammed 3 | . . . 3 Kicked . | . . . . Crushed 1 | . . . 1 Highest Temperature 240 | . 100 118 240 Average Temperature 36 | . 33 43 23 Received Heat Transfer 1362 | . 66 513 783 Siege Activations . | . . . . Martial Activations . | . . . . Shielding Activations . | . . . . Robots Disrupted . | . . . . Combat Hostiles . | . . . . Robots Corrupted . | . . . . Combat Hostiles . | . . . . Parts Fried . | . . . . Impact Corruptions . | . . . . Robots Melted . | . . . . Combat Hostiles . | . . . . Parts Melted 1 | 1 . . . Heat Transferred 275 | 125 25 . 125 Parts Sabotaged . | . . . . Parts Stolen . | . . . . Parts Stripped . | . . . . Power Chain Reactions . | . . . . Alert | -11 -10 -9 -9 ------- Run | Yrd Mat Mat Sto Maximum Alert Level 3 | . . 3 2 Low Security (%) 50 | 100 100 45 . Level 1 16 | . . 9 38 Level 2 30 | . . 37 61 Level 3 1 | . . 6 . Level 4 . | . . . . Level 5 . | . . . . High Security . | . . . . Max Security . | . . . . Peak Influence 713 | 5 105 713 631 Initial 229 | . . . 229 Average 248 | . 17 376 436 Influence Increases 3199 | 10 363 1359 1467 Destroy 0b10 Robot/C 1640 | . 200 580 860 Destroy 0b10 Robot/NC 220 | 10 35 50 125 Destroy Leader 400 | . 40 136 224 Allied During Kill 10 | . . . 10 Successful Hack 37 | . 17 11 9 Disable Machine 45 | . 18 9 18 Destroy Structure 48 | . 23 9 16 Lose Combat Pursuer 225 | . 30 120 75 Miscellaneous 574 | . . 444 130 Influence Decreases 2583 | 10 363 720 1490 Entered New Map 410 | . . . 410 Time Decay 1763 | 10 363 470 920 Lost Part 220 | . . 100 120 Lost Ally 40 | . . . 40 Purge Threat 150 | . . 150 . Squads Dispatched 15 | . . 3 12 Investigation 1 | . . . 1 Extermination . | . . . . Reinforcement 7 | . . 2 5 Assault 5 | . . 1 4 Garrison 2 | . . . 2 Intercept . | . . . . Searches Triggered . | . . . . Construction Impeded 1 | . . 1 . Haulers Reinforced . | . . . . Active Scanning Responses . | . . . . Cargo Convoy Interrupts . | . . . . Stealth | -11 -10 -9 -9 --------- Run | Yrd Mat Mat Sto Distress Signals 8 | . 1 5 2 Communications Jammed . | . . . . Distress Signals . | . . . . Times Spotted 131 | . 23 41 67 Peak Tracking Total 8 | . 4 6 8 Tactical Retreats 13 | . 2 7 4 Traps | -11 -10 -9 -9 ------- Run | Yrd Mat Mat Sto Traps Triggered 11 | . 2 . 9 Indirectly . | . . . . Trap Hack Attempts . | . . . . Triggered . | . . . . Disarmed 2 | . 2 . . Reprogrammed . | . . . . Reused . | . . . . Traps Extracted . | . . . . Installed . | . . . . Triggered . | . . . . Machines | -11 -10 -9 -9 ---------- Run | Yrd Mat Mat Sto Machines Disabled 5 | . 2 1 2 Max in Single Turn 1 | . 1 1 1 Garrison Access 1 | . . . 1 Machines Repaired . | . . . . Machines Dismantled . | . . . . Machines Sabotaged . | . . . . Overloaded Fab Kills . | . . . . Hacking | -11 -10 -9 -9 --------- Run | Yrd Mat Mat Sto Machines Accessed 17 | . 8 2 7 Terminals 14 | . 7 2 5 Fabricators . | . . . . Repair Stations . | . . . . Recycling Units 2 | . 1 . 1 Scanalyzers . | . . . . Garrison Access 1 | . . . 1 Total Hacks 38 | . 21 6 11 Successful 21 | . 12 4 5 Failed 17 | . 9 2 6 Catastrophic 3 | . 2 . 1 Database Lockouts . | . . . . Manual 15 | . 7 3 5 Terminals 33 | . 19 6 8 Fabricators . | . . . . Repair Stations . | . . . . Recycling Units 3 | . 2 . 1 Scanalyzers . | . . . . Garrison Access 2 | . . . 2 Terminal Hacks 17 | . 10 4 3 Prototype ID Bank 1 | . 1 . . Open Door 3 | . . . 3 Branch Access Points 1 | . . 1 . Unreport Threat 1 | . . 1 . Locate Traps 4 | . 3 1 . Disarm Traps 2 | . 2 . . Patrol Status 1 | . 1 . . Hauler Manifests 1 | . . 1 . Registered Components 1 | . 1 . . Zone Layout 2 | . 2 . . Fabricator Hacks . | . . . . Repair Station Hacks . | . . . . Recycling Unit Hacks 3 | . 2 . 1 Process 1 | . 1 . . Retrieve Matter 1 | . 1 . . Retrieve Components 1 | . . . 1 Scanalyzer . | . . . . Garrison Access Hacks 1 | . . . 1 Seal Access 1 | . . . 1 Unauthorized Hacks . | . . . . Terminals . | . . . . Fabricators . | . . . . Repair Stations . | . . . . Recycling Units . | . . . . Scanalyzers . | . . . . Garrison Access . | . . . . Data Cores Recovered . | . . . . Used . | . . . . Hacking Detections 11 | . 6 2 3 Full Trace Events 1 | . . . 1 Feedback Events . | . . . . Feedback Blocked . | . . . . Robot Schematics Acquired . | . . . . Robots Built . | . . . . Authchips . | . . . . Time . | . . . . Total Robot Build Rating . | . . . . Part Schematics Acquired . | . . . . Parts Built . | . . . . Authchips . | . . . . Time . | . . . . Total Part Build Rating . | . . . . Part Studies Acquired . | . . . . Parts Repaired . | . . . . Time . | . . . . Parts Recycled . | . . . . Recycled Matter 159 | . 159 . . Retrieved Matter 288 | . 288 . . Retrieved Components 10 | . . . 10 Parts Scanalyzed . | . . . . Part Schematics Acquired . | . . . . Parts Damaged . | . . . . Bothacking | -11 -10 -9 -9 ------------ Run | Yrd Mat Mat Sto Used RIF Installer . | . . . . Robots Hacked . | . . . . Non-combat . | . . . . Combat . | . . . . Robot Hacks Applied . | . . . . Relay Couplers Released . | . . . . Fabnet Peak Effective % . | . . . . Robots Rewired . | . . . . Allies Hacked . | . . . . Hacks Repelled . | . . . . Allies | -11 -10 -9 -9 -------- Run | Yrd Mat Mat Sto Total Allies 3 | . . . 3 Largest Group 2 | . . . 2 Highest-Rated Group 62 | . . . 62 Highest-Rated Ally 57 | . . . 57 Total Orders . | . . . . Ally Attacks 39 | . . . 39 Total Damage 683 | . . . 683 Kills 12 | . . . 12 Allies Corrupted . | . . . . Allies Melted . | . . . . X0-1V1 Amusement Gains 119 | . 9 40 70 Good Acts 14 | . . 7 7 Bad Acts 19 | . . 12 7 Intel | -11 -10 -9 -9 ------- Run | Yrd Mat Mat Sto Active Infowar (turns) 3277 | 34 1886 790 567 Optics 789 | . . 789 . Structural 567 | . . . 567 Seismic 2027 | 34 1886 107 . Robot Analysis Total . | . . . . Derelict Logs Recovered . | . . . . Drone Launches . | . . . . Drone Recoveries . | . . . . Exploration | -11 -10 -9 -9 ------------- Run | Yrd Mat Mat Sto Turns Passed 4843 | 82 1953 959 1849 Spaces Moved 2668 | 62 1424 431 751 Core 3 | 3 . . . Treads 116 | . . . 116 Legs . | . . . . Wheels 2549 | 59 1424 431 635 Hover . | . . . . Flight . | . . . . Fastest Speed 50 | 50 90 135 116 Average Speed 133 | 88 114 144 167 Slowest Speed 480 | 100 140 230 480 Overloaded Moves . | . . . . Propulsion Burnouts . | . . . . Robots Hopped . | . . . . Potential Cave-ins . | . . . . Cave-ins Triggered . | . . . . Exploration Rate (%) 55 | 4 96 36 86 Regions Visited 3 Branch Regions 1 Pre-discovered Areas . | . . . . Known Exits Taken 1 | . . 1 . Unknown Exits Taken 2 | 1 1 . . Scrap Searched . | . . . . Spaces Dug 20 | . 17 . 3 Terrain Destroyed 42 | . 35 4 3 Melee 3 | . . . 3 Projectile 39 | . 35 4 . AOE . | . . . . Terrain Rammed . | . . . . Walls Destroyed . | . . . . Machines Disabled . | . . . . Actions | -11 -10 -9 -9 --------- Run | Yrd Mat Mat Sto Total 3318 | 79 1561 610 1068 Wait 93 | . 15 40 38 Move 2665 | 61 1423 430 751 Hop . | . . . . Pick Up 66 | 5 15 23 23 Fast Attach 36 | 7 3 3 23 Attach 26 | . 1 15 10 Detach 14 | . 3 5 6 Swap 27 | 1 13 6 7 Drop 40 | . 13 5 22 Fire 298 | 5 75 83 135 Melee 18 | . . . 18 Ram 2 | . . . 2 Kick . | . . . . Crush 1 | . . . 1 Escape Stasis 32 | . . . 32 Rewire . | . . . . Trap . | . . . . Miscellaneous . | . . . . Route ------- -11/Scrapyard -10/Materials (discovered 6 exits: *Mat x3 / [*Min x2] / [*Sub]) -9/Materials (discovered 3 exits: [*Mat] / *Min / *Sto) -9/Storage (discovered 1 exit: Rec) History --------- Turn | Location | Event 24 | -11/Scrapyard | Discovered new exit (range 16) 83 | -11/Scrapyard | Entered Materials 202 | -10/Materials | Discovered new exit (range 7) 295 | -10/Materials | Discovered new exit (range 12) 309 | -10/Materials | Build established: Mutant 484 | -10/Materials | Discovered new exit (range 16) 608 | -10/Materials | Discovered new exit (range 9) 648 | -10/Materials | Discovered new exit (range 15) 1956 | -10/Materials | Discovered new exit (range 6) 1966 | -10/Materials | Prayed at D.C.S.S. Altar Unit 2036 | -10/Materials | Entered another Materials area 2036 | -9/Materials | Evolved 2 slots: Utility x2 2046 | -9/Materials | X0-1V1 added 0b10 threat records associated with you (minor) 2105 | -9/Materials | Discovered new exit (range 14) 2232 | -9/Materials | Energy generation permanently improved by X0-1V1 (+10; -100 max core) 2376 | -9/Materials | Weapon slot count temporarily expanded by X0-1V1 (+1) 2397 | -9/Materials | Lost 4 parts (1p2u1w) 2474 | -9/Materials | X0-1V1 added 0b10 threat records associated with you (minor) 2611 | -9/Materials | X0-1V1 added 0b10 threat records associated with you (major) 2658 | -9/Materials | Discovered new exit (range 17) 2658 | -9/Materials | X0-1V1 sent you into danger 2707 | -9/Materials | X0-1V1 sent you to a vault 2766 | -9/Materials | Identified exit to Mines 2766 | -9/Materials | Identified exit to Storage 2809 | -9/Materials | Build established: Gunner 2836 | -9/Materials | First assault squad dispatched 2896 | -9/Materials | X0-1V1 sent you into danger 2995 | -9/Materials | Entered Storage 3102 | -9/Storage | X0-1V1 announced a LAN party 3112 | -9/Storage | Core integrity restored by X0-1V1 (+45) 3150 | -9/Storage | Build established: Mutant 3152 | -9/Storage | X0-1V1 mutated your Utility slot to Propulsion slot 3278 | -9/Storage | Met a pair of Derelict thieves 3387 | -9/Storage | X0-1V1 activates XOMVISION 3395 | -9/Storage | First assault squad dispatched 3416 | -9/Storage | Identified exit to Recycling 3416 | -9/Storage | X0-1V1 revealed exit location to -9/Recycling 3601 | -9/Storage | Core integrity fell below 50% 3649 | -9/Storage | Lost 3 parts (2n1w) 3788 | -9/Storage | Ranged accuracy permanently improved by X0-1V1 (+5%; -50 max core) 3982 | -9/Storage | Garrison activated, responded to threat 3988 | -9/Storage | Core integrity fell below 20% 3998 | -9/Storage | X0-1V1 rescued you from certain death 4139 | -9/Storage | X0-1V1 sent allied Chaos Knight (x1) 4212 | -9/Storage | X0-1V1 added 0b10 threat records associated with you (minor) 4650 | -9/Storage | Garrison activated, responded to threat 4844 | -9/Storage | Destroyed by G-34 Mercenary with Small Laser Last Messages --------------- 04789_ Dropped Autogun. 04792_ Dropped Hvy. Assault Rifle. 04792_ Acquired Imp. Assault Rifle. 04793_ Dropped Sml. Laser. 04795_ Acquired Hvy. Assault Rifle. 04800_ Acquired Autogun. 04810_ Acquired 13 matter. 04816_ Discarded X0-1V1's Piety Tracker. 04816_ Acquired Med. Armor Plating. 04829_ Acquired 10 matter. 04832_ Dropped Mni. Grenade Launcher. 04832_ Acquired Mni. Grenade Launcher. 04839_ Slug penetrates K-01 Serf. 04841_ C-30 ARC bursts open, deploying its payload. 04841_ B-36 Bruiser unfolds itself. 04841_ G-34 Mercenary unfolds itself. 04842_ Slug penetrates B-36 Bruiser. 04842_ B-36 Bruiser destroyed. 04842_ G-34 Mercenary destroyed. 04844_ X0-1V1 howls with laughter! Map ----- +----------------------------------------------------+ | ????????????????????????????????# """ #???? | | ????????????????????????????????# """ ##??? | | ????????????????????????????????# """ #??? | | ????????????????????????????????# """[!##??? | | ????????????????????????????????# = #???? | | ??????????????????????????###########+######## | | ??????????????????????????# !# + | | ??????????????????????????# """=#*[ # """" | | ??????????????????????????# """!+%% # "* "" | | ??????????????????????????# """=#*[ # *[["" | | ??????????????????????????# =!*%+= + """][ | | ?????????????????? ###??# *%""" #%% # ""[= | | ??????????????????#+####?## """ # # """ | | ?????????????????? ?# """ # % # ? | | ???????????????????" ??## # # | | ???????????????????" o ??###+#######% ####### | | ???????????????????? ??# # # ! | | ???????????????????? ??# # # ! | | ????????????????????k "??# # #! [ | | ???????????????????? T??# # # % ? | | ?#######???????????? "??# + ###+### | | ?#######??????????? ?# # | | ?##! !##???????????##;##?# # ### ### | | ?##! !##???????????## ##?# # #?# #?? | | ?##! !##??????####### ############## #?# #?? | | ###! ##??????#######@##########???# #?# #?? | | #### ###??????## #%#! % ] ##??######## ### | | ##T ###?????## ! +%+ ##??# +% | | #####"###?????## #=# [ %##??# ! # | | #### ##?????## #g#####+####??# !#* %" | | ??## ##?????## %k!= ####??#!![ +%]!T | | ??## = ######### ! # ##????# #%%"" | | ??### ########## # ##????# * #% | | ??### ### ## # ##?###########% % | | ???## ### ## # ##?# #% | | ???## ###T #######+## #### #%% | | ???## #### ####[=* + + ?? # | | ???## #####+##### [! # # ?? #%### | | ???## [*[ / # ########+##%# | | ???## ##### #####! = +%% + | | ???## ##### #####[[ #= ####+####### # " | | ???## ##?## ##### [] # %#!**% !##### # " | | ???## ##?## ############%[#%""" =""### # " | | ??### ##### %[#="""^=Y"### # | | #####+##### +="""* ""### # | | #### ^ # "T" #|* ^ ##### % ##+ | | # "" """" # """"" #!= #??## | | #"G """" " """"" #+######??## | | # "" """" # """"" ##??????## % | | #### """" # =[ !########## % | +----------------------------------------------------+ Best States ------------- Heat Dissipation 28 Energy Generation 24 Energy Capacity 280 Matter Stores 700 Matter Capacity 700 Sight Range 20 Terrain Scan Density 10 Armor Coverage 450 Resistance: KI 20 Resistance: TH 20 Resistance: EX 20 Resistance: EM 20 Resistance: I 20 Resistance: S 20 Resistance: P 20 Evasion (%) 42 Targeting Accuracy 6 Recoil Reduction 3 Offensive Hacking 10 Item Schematics ----------------- None Robot Schematics ------------------ None Fabricated ------------ Nothing Repaired ---------- Nothing Studied --------- None Alien Tech Used ----------------- None Achievements -------------- None Challenges ------------ None Game ------ Seed LaserMetamassChargecaster Manual? 0 Play Time 00:53:33 Cumulative 197.0 hours Start 2026.08.08 @ 12:46:38 End 2026.08.08 @ 14:21:29 Sessions 1 Manual Loads 0 Difficulty Adventurer Special Mode None Game No. 79 Rogue 0 Adventurer 75 Explorer 4 Win Type - Total 5 Types 4/0/0/1/0/0/0/0/0/0 Lore% 48 Gallery% 52 Achievement% 46 Wizard Run 0 Options --------- Layout 0 ASCII 0 Keyboard 1 Movement Numpad Keybinds 0 Fullscreen 2 Font 36/Smallcaps Map View 76x50 Zoom Use 0% Tactical HUD 1 Map Filters NONE Filters NONE Steam 1 RUN: 2f7d01fa-c5d0-4506-bebb-723c262086b6